bitfinex-derivatives/quotes_ETHF0:USTF0_20240920
["timestamp","ask_amount","ask_price","bid_price","bid_amount"]
[1726834117005,0.39203,2550.4,2550.3,1.16015]
[1726834117204,4.57782,2550.6,2550.4,0.39202]
[1726834117205,0.39202,2550.5,2550.4,0.39202]
[1726834117621,3.5978,2550.6,2550.3,0.7681]
[1726834117812,0.39203,2550.5,2550.4,0.39202]
[1726834118819,0.39203,2550.5,2550.4,0.86252]
[1726834121026,0.39203,2550.5,2550.4,0.4705]
[1726834122029,0.39203,2550.5,2550.4,0.86253]
[1726834122431,0.39203,2550.5,2550.4,0.4705]
[1726834122727,0.39203,2550.5,2550.4,0.86253]
[1726834123523,0.78201,2550.6,2550.5,0.39202]
[1726834123723,0.39202,2550.5,2550.4,0.86252]
[1726834123930,0.39,2550.6,2550.5,0.39202]
[1726834124120,0.39202,2550.5,2550.4,0.86252]
[1726834125827,1.37203,2550.6,2550.5,0.392]
[1726834126021,0.39199,2550.7,2550.6,0.392]
[1726834126222,0.39198,2550.8,2550.7,0.39197]
[1726834126523,0.39198,2550.8,2550.7,0.78097]
[1726834126722,0.39198,2550.8,2550.7,0.389]
[1726834126923,1.37191,2550.8,2550.7,0.389]
[1726834127123,1.37191,2550.8,2550.7,0.78099]
[1726834128129,1.37191,2550.8,2550.7,0.70559]
[1726834129233,1.37191,2550.8,2550.7,0.3136]
[1726834129428,1.37191,2550.8,2550.7,0.70559]
[1726834132740,0.39197,2550.9,2550.8,0.39195]
[1726834133135,0.79095,2551.0,2550.9,0.39195]
[1726834133537,0.79095,2551.0,2550.8,3.06]
[1726834133538,0.39195,2550.9,2550.8,3.45196]
[1726834135744,0.79095,2551.0,2550.9,0.39195]
[1726834137746,3.59972,2551.2,2551.1,0.39192]
[1726834138438,3.59972,2551.2,2551.1,0.86222]
[1726834138844,3.2078,2551.2,2551.1,1.84204]
[1726834139141,0.39183,2551.8,2551.7,0.39182]
[1726834139345,0.77363,2551.8,2551.7,3.45182]
[1726834139650,0.77363,2551.8,2551.7,3.06]
[1726834139834,1.75318,2551.8,2551.7,3.06]
[1726834140036,0.39183,2551.7,2551.6,3.06]
[1726834141045,0.39185,2551.6,2551.5,0.39185]
[1726834141648,0.39185,2551.6,2551.5,0.70535]
[1726834141951,0.39183,2551.7,2551.6,0.39185]
[1726834142149,0.39185,2551.6,2551.5,0.70535]
[1726834142345,0.39185,2551.6,2551.5,0.3135]
[1726834143439,0.39185,2551.6,2551.5,0.70536]
[1726834144749,0.39185,2551.6,2551.5,0.70535]
[1726834144942,0.39185,2551.7,2551.6,0.39184]
[1726834145145,0.3818,2551.8,2551.7,0.39183]
[1726834145347,0.7917,2552.0,2551.6,3.06]
[1726834145547,0.7917,2552.0,2551.9,3.4518]
[1726834145744,0.8023,2552.0,2551.9,3.06]
[1726834145944,0.3918,2552.0,2551.9,3.06]
[1726834146150,3.2078,2552.2,2551.9,3.06]
[1726834146151,3.2078,2552.2,2551.9,6.9784]
[1726834146340,3.59957,2552.2,2552.1,3.45177]
[1726834146952,3.59957,2552.2,2552.1,3.06]
[1726834147146,3.59957,2552.2,2552.1,3.45177]
[1726834147746,3.59957,2552.2,2552.1,3.76517]
[1726834148251,0.39177,2552.2,2552.1,3.76517]
[1726834149457,0.78645,2552.3,2552.2,0.39176]
[1726834149642,0.78645,2552.3,2552.2,1.14516]
[1726834149848,0.78645,2552.3,2552.2,1.54416]
[1726834150449,0.78645,2552.3,2552.2,1.1524]
[1726834150847,0.78645,2552.3,2552.2,1.16946]
[1726834151055,1.76581,2552.3,2552.2,1.2478]
[1726834151256,0.78645,2552.3,2552.2,0.86186]
[1726834153163,0.78645,2552.3,2552.2,0.7835]
[1726834153850,0.78645,2552.3,2552.2,1.17526]
[1726834154652,0.39175,2552.3,2552.2,1.17526]
[1726834155342,0.39175,2552.3,2552.2,4.23526]
[1726834156157,1.37111,2552.3,2552.2,0.7835]
[1726834156551,0.39175,2552.3,2552.2,1.17526]
[1726834158961,0.39173,2552.4,2552.3,0.39172]
[1726834159559,0.39173,2552.4,2552.2,3.8435]
[1726834159560,1.57792,2552.5,2552.4,0.39172]
[1726834160259,0.39174,2552.4,2552.3,0.39173]
[1726834160466,1.57792,2552.5,2552.4,0.39172]
[1726834161058,0.3959,2552.5,2552.4,3.45172]
[1726834161366,0.78761,2552.5,2552.4,3.45172]
[1726834161766,1.74489,2552.8,2552.6,0.39168]
[1726834161970,0.77449,2552.7,2552.6,0.39168]
[1726834162668,0.39169,2552.6,2552.5,1.562]
[1726834162863,0.39171,2552.5,2552.4,3.45171]
[1726834163067,0.39171,2552.5,2552.4,0.39171]
[1726834163860,0.77449,2552.7,2552.6,0.39169]
[1726834164964,0.3828,2552.7,2552.6,3.45169]
[1726834165162,0.77448,2552.7,2552.6,3.45169]
[1726834165357,0.3828,2552.7,2552.6,8.34853]
[1726834165563,0.39166,2552.9,2552.8,0.39166]
[1726834165758,1.36524,2553.2,2552.8,0.39166]
[1726834165759,0.39164,2553.0,2552.9,0.39164]
[1726834165971,0.3916,2553.2,2553.1,0.39161]
[1726834166161,3.2078,2553.4,2553.3,0.39159]
[1726834166367,3.2078,2553.4,2553.3,3.45159]
[1726834166671,0.3862,2553.5,2553.4,0.39157]
[1726834167266,0.4091,2553.7,2553.3,3.06]
[1726834167568,0.39156,2553.5,2553.3,3.45158]
[1726834167771,0.77735,2553.6,2553.4,0.39157]
[1726834168269,0.3858,2553.6,2553.5,0.39156]
[1726834168568,0.4067,2553.8,2553.5,3.06]
[1726834168867,0.4067,2553.8,2553.7,3.06]
[1726834169168,0.4067,2553.8,2553.7,3.45152]
[1726834169362,0.4067,2553.8,2553.7,3.76472]
[1726834169565,0.7761,2554.1,2553.8,0.3915]
[1726834169757,0.39148,2554.0,2553.8,0.3915]
[1726834169962,0.7761,2554.1,2553.8,0.3915]
[1726834170164,1.16757,2554.1,2553.8,0.39151]
[1726834170370,1.16757,2554.1,2553.8,0.3915]
[1726834170569,0.7761,2554.1,2553.8,0.3915]
[1726834170772,3.98956,2554.2,2553.9,3.45149]
[1726834170972,0.78176,2554.2,2553.9,3.45148]
[1726834171171,0.78176,2554.2,2554.0,0.39148]
[1726834171361,0.3903,2554.2,2554.0,0.39148]
[1726834171863,40.8,2554.7,2554.1,6.9752]
[1726834172065,0.3914,2554.5,2554.4,3.06]
[1726834173271,0.39144,2554.3,2554.2,3.06]
[1726834173472,4.03851,2554.5,2553.8,7.258]
[1726834173771,0.39149,2554.0,2553.9,0.4698]
[1726834175771,8.49319,2554.0,2553.9,0.4698]
[1726834176763,15.47189,2554.0,2553.9,0.4698]
[1726834177372,56.27189,2554.0,2553.9,0.4698]
[1726834179868,56.27189,2554.0,2553.9,0.783]
[1726834180068,55.29319,2554.0,2553.9,0.783]
[1726834180273,45.37799,2554.0,2553.9,0.783]
[1726834182570,4.57799,2554.0,2553.9,0.783]
[1726834182780,3.59929,2554.0,2553.9,0.783]
[1726834183275,4.57799,2554.0,2553.9,0.783]
[1726834184681,3.59929,2554.0,2553.9,0.783]
[1726834184878,4.57799,2554.0,2553.9,0.783]
[1726834186573,1.37019,2554.0,2553.9,0.783]
[1726834187079,4.57799,2554.0,2553.9,0.783]
[1726834188085,8.49319,2554.0,2553.9,0.783]
[1726834189179,8.49319,2554.0,2553.9,1.0962]
[1726834189384,9.47189,2554.0,2553.9,1.0962]
[1726834190487,9.47189,2554.0,2553.9,0.4745]
[1726834190488,15.47189,2554.0,2553.9,0.4745]
[1726834191485,9.47189,2554.0,2553.9,0.4745]
[1726834191678,9.47189,2554.0,2553.9,0.7877]
[1726834193883,8.49319,2554.0,2553.9,0.7877]
[1726834194090,4.57799,2554.0,2553.9,0.7877]
[1726834194480,8.49319,2554.0,2553.9,0.7877]
[1726834194783,7.51449,2554.0,2553.9,0.7877]
[1726834194987,0.39149,2554.0,2553.9,0.7877]
[1726834195294,1.37019,2554.0,2553.9,0.7877]
[1726834195587,0.39149,2554.0,2553.9,0.7877]
[1726834196485,1.37019,2554.0,2553.9,0.7877]
[1726834197700,4.57799,2554.0,2553.9,0.7877]
[1726834198984,9.47189,2554.0,2553.9,0.7877]
[1726834199492,12.53189,2554.0,2553.9,0.7877]
[1726834200100,53.33189,2554.0,2553.9,0.7877]
[1726834200396,50.27189,2554.0,2553.9,0.7877]
[1726834201496,58.2293,2554.0,2553.9,0.7877]
[1726834201787,59.33189,2554.0,2553.9,0.7877]
[1726834203590,56.27189,2554.0,2553.9,0.7877]
[1726834203891,50.27189,2554.0,2553.9,0.7877]
[1726834204088,49.29319,2554.0,2553.9,0.7877]
[1726834204293,8.49319,2554.0,2553.9,0.7877]
[1726834205089,3.59929,2554.0,2553.9,0.7877]
[1726834205389,4.57799,2554.0,2553.9,0.7877]
[1726834205694,3.59929,2554.0,2553.9,0.7877]
[1726834205994,4.57799,2554.0,2553.9,0.7877]
[1726834208194,9.47189,2554.0,2553.9,0.7877]
[1726834208589,9.88159,2554.0,2553.9,0.7877]
[1726834208789,15.94422876,2554.0,2553.9,0.7877]
[1726834209096,20.96163876,2554.0,2553.9,0.7877]
[1726834211799,19.00422876,2554.0,2553.9,0.7877]
[1726834212091,19.0042307,2554.0,2553.9,0.7877]
[1726834213100,20.9616407,2554.0,2553.9,8e-05]
[1726834213301,25.56461006,2554.0,2553.9,8e-05]
[1726834214803,23.54455936,2554.0,2553.9,0.62648]
[1726834214992,19.00423058,2554.0,2553.9,0.62648]
[1726834215191,9.88159,2554.0,2553.9,0.62648]
[1726834215704,14.0878813,2554.0,2553.9,0.62648]
[1726834215904,13.1091813,2554.0,2553.9,0.62648]
[1726834216103,9.1939813,2554.0,2553.9,0.62648]
[1726834216300,8.49319,2554.0,2553.9,0.62648]
[1726834216598,4.57799,2554.0,2553.9,0.62648]
[1726834216805,8.49319,2554.0,2553.9,0.62648]
[1726834217006,4.57799,2554.0,2553.9,0.62648]
[1726834217597,9.47189,2554.0,2553.9,0.62648]
[1726834217993,14.0878813,2554.0,2553.9,0.62648]
[1726834218600,9.47189,2554.0,2553.9,0.62648]
[1726834218901,14.08963067,2554.0,2553.9,0.62648]
[1726834219523,9.47189,2554.0,2553.9,0.62648]
[1726834219696,23.64241175,2554.0,2553.9,0.62648]
[1726834220108,23.70505377,2554.0,2553.9,0.62648]
[1726834220799,23.66477129,2554.0,2553.9,0.62648]
[1726834220995,23.72741291,2554.0,2553.9,0.62648]
[1726834221199,18.59453162,2554.0,2553.9,0.62648]
[1726834221396,18.53189,2554.0,2553.9,0.62648]
[1726834221597,23.66484962,2554.0,2553.9,0.62648]
[1726834222706,18.53189,2554.0,2553.9,0.62648]
[1726834222892,18.59453163,2554.0,2553.9,0.62648]
[1726834223398,1.3704,2553.6,2553.5,0.3936]
[1726834223597,4.5782,2553.6,2553.5,0.3936]
[1726834223898,4.9831,2553.6,2553.5,0.3936]
[1726834225096,4.9831,2553.6,2553.5,1.02]
[1726834227695,3.59934,2553.6,2553.5,1.02]
[1726834227910,4.5782,2553.6,2553.5,1.02]
[1726834229111,3.59934,2553.6,2553.5,4.08]
[1726834229405,1.3704,2553.6,2553.5,4.08]
[1726834229612,0.39154,2553.6,2553.5,4.08]
[1726834233112,1.3704,2553.6,2553.5,1.02]
[1726834236214,3.59934,2553.7,2553.5,1.41155]
[1726834236513,0.39154,2553.6,2553.5,1.02]
[1726834238606,0.39154,2553.6,2553.5,1.41156]
[1726834239121,0.39154,2553.6,2553.5,1.02]
[1726834239508,1.3704,2553.6,2553.5,1.02]
[1726834240316,2.34926,2553.6,2553.5,1.3332]
[1726834240711,1.3704,2553.6,2553.5,0.9396]
[1726834243119,0.39154,2553.6,2553.5,0.9396]
[1726834243315,8.80598005,2553.7,2553.5,4.78935]
[1726834243316,4.61934005,2553.7,2553.5,4.78935]
[1726834243520,6.11138006,2553.8,2553.5,4.78935]
[1726834243521,0.97878,2553.8,2553.5,4.78935]
[1726834243720,0.39154,2553.6,2553.5,4.3978]
[1726834244120,0.39154,2553.6,2553.5,1.3378]
[1726834244423,1.3704,2553.6,2553.5,1.3378]
[1726834247621,1.3704,2553.6,2553.5,0.9396]
[1726834249922,1.3704,2553.6,2553.5,1.3138]
[1726834251231,1.3704,2553.6,2553.5,0.9396]
[1726834251732,1.7653,2553.6,2553.5,0.9396]
[1726834255632,1.3704,2553.6,2553.5,0.9396]
[1726834255839,0.39154,2553.6,2553.5,0.9396]
[1726834258634,0.39154,2553.6,2553.5,2.1335]
[1726834262639,3.2078,2553.7,2553.6,0.39154]
[1726834262938,3.2078,2553.7,2553.5,4.64544]
[1726834262939,3.59933,2553.7,2553.5,4.64544]
[1726834263132,3.59933,2553.7,2553.5,4.64545]
[1726834263439,3.59933,2553.7,2553.6,0.39154]
[1726834263636,3.2078,2553.7,2553.6,4.30754]
[1726834263936,3.59929,2554.0,2553.9,0.39149]
[1726834264141,0.3915,2553.9,2553.8,3.4515]
[1726834264542,0.3915,2553.9,2553.8,7.6024]
[1726834265337,0.3915,2553.9,2553.8,7.99391]
[1726834265742,0.3915,2553.9,2553.8,7.6024]
[1726834266146,0.3915,2553.9,2553.8,4.5424]
[1726834267038,0.3915,2553.9,2553.8,0.6264]
[1726834267941,0.3915,2553.9,2553.8,0.9396]
[1726834268337,3.6178,2554.0,2553.8,0.9396]
[1726834268338,4.00929,2554.0,2553.8,0.9396]
[1726834268539,0.39149,2553.9,2553.8,0.9396]
[1726834268747,3.59929,2554.0,2553.8,0.9396]
[1726834268945,5.40897,2553.9,2553.8,0.9396]
[1726834269139,9.92027587,2553.9,2553.8,0.9396]
[1726834275237,50.72027587,2553.9,2553.8,0.9396]
[1726834277740,8.94153587,2553.9,2553.8,0.9396]
[1726834278149,6.86027587,2553.9,2553.8,0.9396]
[1726834278349,49.74153587,2553.9,2553.8,0.9396]
[1726834279243,42.76633587,2553.9,2553.8,0.9396]
[1726834280957,59.58707,2553.9,2552.8,2.5231792]
[1726834281158,1.37067,2553.1,2553.0,0.57691984]
[1726834281348,0.39165,2552.9,2552.8,0.3974]
[1726834282355,1.37078,2552.9,2552.8,0.3974]
[1726834282650,0.39165,2552.9,2552.8,0.3974]
[1726834282848,3.59944,2553.0,2552.8,0.9995]
[1726834283048,3.59945,2553.0,2552.8,0.9995]
[1726834283453,0.39165,2552.9,2552.8,0.9995]
[1726834284655,0.39165,2552.9,2552.8,1.4121]
[1726834284850,4.43078,2552.9,2552.8,1.4121]
[1726834287068,3.45165,2552.9,2552.8,1.4121]
[1726834287959,3.45165,2552.9,2552.8,1.7254]
[1726834289155,4.43078,2552.9,2552.8,1.7254]
[1726834289454,3.45165,2552.9,2552.8,1.7254]
[1726834290247,3.45165,2552.9,2552.8,0.9154]
[1726834290248,18.53451,2552.9,2552.8,0.9154]
[1726834290447,18.53451,2552.9,2552.2,0.4083]
[1726834290448,16.1846,2552.9,2552.2,0.4083]
[1726834290654,0.99348979,2553.2,2552.2,0.4083]
[1726834290655,6.65954,2552.3,2552.2,0.4083]
[1726834290848,7.6389,2552.3,2552.2,0.4083]
[1726834291664,4.5789,2552.3,2552.2,0.4083]
[1726834291864,7.6389,2552.3,2552.2,0.4083]
[1726834292062,7.6389,2552.3,2552.2,0.7217]
[1726834295366,6.65954,2552.3,2552.2,0.7217]
[1726834296068,3.2078,2552.3,2552.2,0.7217]
[1726834296264,3.59949,2552.7,2552.3,0.39174]
[1726834296562,3.59949,2552.7,2552.4,0.3877]
[1726834296563,3.2078,2552.7,2552.4,0.3877]
[1726834296869,0.39171,2552.5,2552.4,0.3877]
[1726834297570,3.4517,2552.6,2552.4,0.3877]
[1726834297960,0.39171,2552.5,2552.4,0.3877]
[1726834298159,3.45171,2552.6,2552.4,0.3877]
[1726834298967,3.45171,2552.6,2552.5,0.3134]
[1726834300668,0.39171,2552.6,2552.5,0.3134]
[1726834300869,1.37095,2552.6,2552.5,0.3134]
[1726834301071,0.39171,2552.6,2552.5,0.3134]
[1726834301273,0.39171,2552.6,2552.5,0.7173]
[1726834302268,5.28855,2552.6,2552.5,0.3134]
[1726834302473,6.07335,2552.6,2552.5,0.3134]
[1726834303072,2.15575,2552.6,2552.5,0.3134]
[1726834306972,7.25269192,2552.6,2552.5,0.3134]
[1726834307185,13.25269192,2552.6,2552.5,0.3134]
[1726834307481,13.315372,2552.6,2552.5,0.3134]
[1726834307875,7.315372,2552.6,2552.5,0.3134]
[1726834308076,7.25269192,2552.6,2552.5,0.3134]
[1726834308274,10.95169192,2552.6,2552.5,0.3134]
[1726834308682,7.25269192,2552.6,2552.5,0.3134]
[1726834308883,3.33509192,2552.6,2552.5,0.3134]
[1726834309076,7.25269192,2552.6,2552.5,0.3134]
[1726834309475,7.3153721,2552.6,2552.5,0.3134]
[1726834309680,7.31537233,2552.6,2552.5,0.3134]
[1726834309982,2.35046,2552.3,2552.2,0.3134]
[1726834310187,5.55826,2552.3,2552.2,0.3134]
[1726834310383,15.88126,2552.3,2552.2,0.3134]
[1726834310586,9.88126,2552.3,2552.2,0.3134]
[1726834310783,5.96286,2552.3,2552.2,0.3134]
[1726834312880,4.9835,2552.3,2552.2,0.3134]
[1726834315790,4.5789,2552.3,2552.2,0.3134]
[1726834317690,9.47666,2552.3,2552.2,0.3134]
[1726834318593,8.4973,2552.3,2552.2,0.3134]
[1726834319592,9.47666,2552.3,2552.2,0.3134]
[1726834323096,9.47666,2552.3,2552.2,0.6268]
[1726834323294,8.4973,2552.3,2552.2,0.6268]
[1726834323795,11.5573,2552.3,2552.2,0.6268]
[1726834324800,9.47666,2552.3,2552.2,0.6268]
[1726834325099,12.53666,2552.3,2552.2,0.6268]
[1726834325293,12.59934848,2552.3,2552.2,0.6268]
[1726834325794,1.37126,2552.0,2551.9,0.3834]
[1726834325999,1.37137,2551.8,2551.7,0.3817]
[1726834326196,3.06,2551.8,2551.4,0.7788]
[1726834326398,3.06,2551.5,2551.4,0.7788]
[1726834326800,3.06,2551.5,2551.4,4.698]
[1726834327494,3.06,2551.5,2551.4,5.40338]
[1726834327695,3.06,2551.6,2551.4,5.40338]
[1726834327892,3.06,2551.6,2551.4,5.0115]
[1726834329401,3.45185,2551.6,2551.4,5.0115]
[1726834329600,3.06,2551.6,2551.4,5.40337]
[1726834330105,0.39186,2551.5,2551.4,5.0115]
[1726834333210,3.06,2551.6,2551.4,5.0115]
[1726834333405,3.06,2551.6,2551.5,0.39186]
[1726834333910,3.06,2551.6,2551.4,1.48417]
[1726834334098,0.39186,2551.5,2551.4,1.48417]
[1726834334499,0.39186,2551.5,2551.4,5.40337]
[1726834335900,0.39186,2551.5,2551.4,5.71687]
[1726834336103,1.37152,2551.5,2551.4,5.325]
[1726834336304,5.41118,2551.5,2551.4,1.4058]
[1726834336697,4.43152,2551.5,2551.4,0.627]
[1726834338313,3.45186,2551.5,2551.4,0.627]
[1726834339812,0.39186,2551.5,2551.4,0.627]
[1726834340000,3.45186,2551.6,2551.4,4.5462]
[1726834340205,3.45186,2551.6,2551.5,0.3952]
[1726834340915,3.06,2551.6,2551.5,0.3952]
[1726834341106,3.45185,2551.6,2551.5,0.3952]
[1726834341301,3.06,2551.6,2551.5,0.3952]
[1726834341503,3.45185,2551.6,2551.5,0.3952]
[1726834344218,0.97952,2551.9,2551.5,4.70626]
[1726834344417,0.39184,2551.7,2551.6,0.7968]
[1726834344615,3.06,2551.7,2551.6,1.18865]
[1726834344823,3.45183,2551.7,2551.6,5.10785]
[1726834345211,3.06,2551.7,2551.6,4.716]
[1726834345518,3.45183,2551.7,2551.6,4.716]
[1726834346812,3.45183,2551.7,2551.6,0.7968]
[1726834347616,3.45183,2551.7,2551.6,4.716]
[1726834350116,3.45183,2551.7,2551.6,1.1103]
[1726834350721,7.63922,2551.7,2551.6,0.7032]
[1726834350922,8.43892,2551.7,2551.6,0.7032]
[1726834351316,8.43892,2551.7,2551.6,0.3135]
[1726834351619,0.97966,2551.5,2550.9,4.198]
[1726834351818,0.97966,2551.5,2551.0,0.4032]
[1726834351819,0.39192,2551.1,2551.0,0.4032]
[1726834352827,0.3828,2551.2,2551.0,0.4032]
[1726834353131,3.06,2551.1,2551.0,0.4032]
[1726834353429,3.45192,2551.1,2551.0,0.5265]
[1726834354623,3.45192,2551.1,2551.0,0.1233]
[1726834355217,3.45192,2551.1,2551.0,0.1474]
[1726834355515,7.37192,2551.1,2551.0,0.1474]
[1726834356431,8.35174,2551.1,2551.0,0.1474]
[1726834356632,0.392,2550.7,2550.3,0.7845]
[1726834356827,3.06,2550.5,2550.3,0.7845]
[1726834357125,3.06,2550.5,2550.4,3.9208]
[1726834357323,3.8591,2550.6,2550.4,3.9208]
[1726834357525,3.8591,2550.6,2550.3,0.7845]
[1726834357732,3.8591,2550.6,2550.3,1.17655]
[1726834358218,4.2511,2550.6,2550.3,0.7845]
[1726834358629,3.4567,2550.6,2550.3,1.17654]
[1726834359334,3.8487,2550.6,2550.3,1.17654]
[1726834359529,0.39202,2550.5,2550.3,0.7845]
[1726834359925,0.39202,2550.5,2550.3,4.7053]
[1726834360128,0.39202,2550.5,2550.3,0.7845]
[1726834360823,3.4567,2550.6,2550.3,0.7845]
[1726834361028,3.45203,2550.4,2550.3,0.7845]
[1726834361329,0.39208,2550.1,2550.0,3.2078]
[1726834361526,3.45208,2550.1,2550.0,3.2078]
[1726834361723,3.45208,2550.1,2549.9,0.412]
[1726834361724,0.39209,2550.0,2549.9,0.412]
[1726834362934,3.45209,2550.1,2549.9,0.412]
[1726834363618,3.5967,2550.2,2549.5,0.79046]
[1726834363619,0.39211,2549.9,2549.5,0.79046]
[1726834363822,3.45213,2549.8,2549.6,0.4128]
[1726834364224,3.06,2549.8,2549.4,0.60848852]
[1726834364432,3.45216,2549.6,2549.4,0.60848852]
[1726834364732,0.39217,2549.5,2549.4,0.60848852]
[1726834364920,0.3922,2549.4,2549.0,4.59025]
[1726834365124,3.06,2549.3,2549.0,4.59024]
[1726834365833,3.4522,2549.3,2549.0,4.198]
[1726834366231,3.06,2549.1,2548.5,4.198]
[1726834366532,0.39223,2549.2,2548.9,0.39226]
[1726834366732,3.06,2549.3,2548.9,0.39226]
[1726834366733,0.39223,2549.1,2548.9,0.39226]
[1726834367032,0.39225,2549.0,2548.8,0.76677]
[1726834367225,0.39228,2548.8,2548.7,0.3918]
[1726834367528,0.39228,2548.8,2548.4,3.60013]
[1726834367529,0.39232,2548.5,2548.4,3.5967]
[1726834367732,3.45232,2548.5,2548.4,0.3889]
[1726834369534,0.39234,2548.4,2548.3,0.3918]
[1726834369826,3.06,2548.5,2548.3,0.3918]
[1726834369827,3.45233,2548.5,2548.3,0.3918]
[1726834370132,0.39234,2548.4,2548.3,0.3918]
[1726834370318,3.06,2548.5,2548.3,0.3918]
[1726834370319,3.45234,2548.5,2548.3,0.3918]
[1726834370519,0.39234,2548.4,2548.3,0.3918]
[1726834370824,3.06,2548.5,2548.3,0.3918]
[1726834370825,3.45233,2548.5,2548.3,0.78415]
[1726834372521,3.45233,2548.5,2548.4,0.39234]
[1726834372725,0.39231,2548.6,2548.5,0.39232]
[1726834373824,0.39231,2548.6,2548.4,0.39234]
[1726834374332,0.39231,2548.6,2548.5,0.39232]
[1726834374537,0.39231,2548.6,2548.4,0.39233]
[1726834374729,0.39231,2548.6,2548.5,0.39232]
[1726834374931,3.4539,2548.7,2548.4,0.39233]
[1726834375225,0.39232,2548.5,2548.4,0.39233]
[1726834375432,0.39234,2548.4,2548.3,0.78415]
[1726834375629,3.45233,2548.5,2548.3,0.78415]
[1726834375938,3.45233,2548.5,2548.4,0.39234]
[1726834376234,3.06,2548.5,2548.4,0.39234]
[1726834376435,3.4539,2548.7,2548.5,0.39232]
[1726834376636,0.39232,2548.6,2548.4,0.39233]
[1726834376826,3.06,2548.5,2548.3,0.78415]
[1726834377027,3.45234,2548.5,2548.3,0.78415]
[1726834377736,3.45234,2548.5,2548.4,0.39234]
[1726834377939,3.06,2548.5,2548.4,0.39234]
[1726834378235,3.45232,2548.5,2548.3,0.78414]
[1726834378436,3.06,2548.5,2548.4,0.39234]
[1726834378739,3.06,2548.5,2548.3,0.3918]
[1726834378927,3.06,2548.5,2548.4,0.39234]
[1726834379127,3.06,2548.5,2548.3,0.3918]
[1726834379331,3.45233,2548.5,2548.3,0.78415]
[1726834379727,0.39234,2548.4,2548.3,0.78415]
[1726834380131,0.39234,2548.4,2548.3,0.3918]
[1726834381437,0.39234,2548.4,2548.3,0.78415]
[1726834382238,0.39239,2548.1,2547.9,3.2078]
[1726834382434,3.06,2548.1,2547.8,0.7942]
[1726834383328,0.39241,2548.0,2547.8,0.7942]
[1726834383536,3.45242,2547.9,2547.8,0.4081]
[1726834383732,3.45242,2547.9,2547.5,0.39247]
[1726834383733,0.39245,2547.7,2547.5,0.39247]
[1726834383938,3.06,2547.6,2547.5,0.39247]
[1726834385055,0.39245,2547.7,2547.5,0.39247]
[1726834385436,0.77825,2547.7,2547.5,0.39247]
[1726834385639,0.3858,2547.7,2547.6,0.39246]
[1726834386337,0.77825,2547.7,2547.6,0.39246]
[1726834386537,0.3858,2547.7,2547.4,0.4081]
[1726834386739,0.77825,2547.7,2547.6,0.39246]
[1726834386943,0.39243,2547.8,2547.7,0.39245]
[1726834387245,3.4551,2548.0,2547.7,0.39244]
[1726834387447,3.4551,2548.0,2547.6,0.39245]
[1726834387746,0.39244,2547.8,2547.6,0.39245]
[1726834388150,4.04113,2547.7,2547.4,0.8037]
[1726834388346,0.39248,2547.5,2547.4,0.4081]
[1726834390253,0.39248,2547.5,2547.4,0.80059]
[1726834390954,0.39248,2547.5,2547.4,0.4081]
[1726834391154,0.39248,2547.5,2547.4,0.80059]
[1726834392154,3.45248,2547.5,2547.4,0.80059]
[1726834392746,0.3925,2547.4,2546.8,0.98145]
[1726834392950,0.3769,2547.3,2547.2,0.39252]
[1726834393252,0.3769,2547.3,2546.8,0.98147]
[1726834393454,0.76941,2547.3,2547.1,0.39253]
[1726834393657,3.06,2547.4,2546.9,0.98143]
[1726834393852,3.06,2547.4,2547.2,0.39252]
[1726834394058,3.06,2547.4,2547.1,0.39253]
[1726834394257,0.39252,2547.3,2547.1,0.79673]
[1726834394559,3.4525,2547.4,2547.1,0.79673]
[1726834394761,0.39251,2547.3,2547.1,0.79673]
[1726834395156,3.45252,2547.2,2547.1,0.4042]
[1726834395362,4.43384,2547.2,2547.1,0.4042]
[1726834396051,7.24912,2547.2,2546.7,0.39259]
[1726834396250,3.06,2546.9,2546.8,0.39259]
[1726834396855,3.06,2546.9,2546.7,0.39259]
[1726834397055,3.06,2546.9,2546.8,0.39259]
[1726834397357,3.45257,2546.9,2546.7,0.39259]
[1726834397564,3.06,2546.9,2546.7,0.39259]
[1726834397864,3.45257,2546.9,2546.7,0.39259]
[1726834398458,3.45257,2546.9,2546.6,0.8128]
[1726834398459,0.39259,2546.8,2546.6,1.20541]
[1726834398755,3.06,2546.7,2546.1,0.98173]
[1726834398961,3.06,2546.7,2545.7,10.41324853]
[1726834398962,3.06,2546.4,2546.2,0.7558]
[1726834399163,3.45266,2546.3,2546.2,0.7558]
[1726834399363,4.43432,2546.3,2546.2,0.3753]
[1726834399661,3.45266,2546.3,2546.2,0.3753]
[1726834400265,10.0472,2546.3,2545.4,0.18219549]
[1726834400468,3.06,2545.7,2545.6,0.39277]
[1726834400663,4.01028,2546.2,2545.5,0.98197]
[1726834400867,3.45272,2546.0,2545.7,0.39275]
[1726834401060,3.06,2545.8,2545.6,0.39276]
[1726834401257,3.06,2545.8,2545.4,0.7622]
[1726834401765,3.06,2545.8,2545.5,0.39277]
[1726834401955,3.06,2545.6,2545.4,0.77329]
[1726834402161,3.06,2545.6,2545.4,0.3805]
[1726834402462,0.39279,2545.5,2545.3,0.3862]
[1726834402768,3.06,2545.4,2545.3,0.77902]